fUST/lending_fUST_20250825
["ID","MTS","AMOUNT","RATE_DAILY","PERIOD"]
[381117421,1756055442127,-480.0,0.00049589,120]
[381117422,1756055442137,-480.0,0.00049589,120]
[381117423,1756055442147,-530.72,0.00049589,120]
[381117424,1756055442158,-785.12,0.00049589,120]
[381117425,1756055442170,-501.99635272,0.00049589,120]
[381117426,1756055442180,-480.0,0.00049589,120]
[381117427,1756055442190,-513.5688292,0.00049589,120]
[381117428,1756055442200,-500.0,0.00049589,120]
[381117429,1756055442210,-500.0,0.00049589,120]
[381117430,1756055442220,-480.0,0.00049589,120]
[381117431,1756055442231,-500.0,0.00049589,120]
[381117432,1756055442240,-402.28215426,0.00049589,120]
[381117433,1756055442250,-480.0,0.00049589,120]
[381117434,1756055442260,-495.02,0.00049589,120]
[381117435,1756055442269,-1211.77,0.00049589,120]
[381117436,1756055442279,-1481.43,0.00049589,120]
[381117437,1756055442289,-480.0,0.00049589,7]
[381117438,1756055442299,-480.0,0.00049589,120]
[381117439,1756055442309,-480.0,0.00049589,120]
[381117440,1756055442318,-1024.3,0.00049589,120]
[381117441,1756055442328,-1502.31,0.00049589,120]
[381117442,1756055442338,-1812.9,0.00049589,120]
[381117443,1756055442348,-500.0,0.00049589,120]
[381117444,1756055442359,-500.0,0.00049589,120]
[381117446,1756055442370,-500.0,0.00049589,120]
[381117448,1756055442380,-500.0,0.00049589,120]
[381117450,1756055442390,-500.0,0.00049589,120]
[381117451,1756055442400,-500.0,0.00049589,120]
[381117452,1756055442410,-500.0,0.00049589,120]
[381117453,1756055442422,-480.0,0.00049589,120]
[381117454,1756055442431,-500.0,0.00049589,120]
[381117455,1756055442441,-1771.85,0.00049589,120]
[381117456,1756055442451,-500.0,0.00049589,120]
[381117457,1756055442471,-480.0,0.00049589,120]
[381117459,1756055442485,-500.0,0.00049589,120]
[381117460,1756055442495,-500.0,0.00049589,120]
[381117461,1756055442504,-604.45,0.00049589,120]
[381117462,1756055442514,-500.0,0.00049589,120]
[381117463,1756055442523,-500.0,0.00049589,120]
[381117464,1756055442533,-500.0,0.00049589,120]
[381117465,1756055442543,-369.7,0.00049589,120]
[381117466,1756055442553,-846.31,0.00049589,120]
[381117467,1756055442562,-497.97,0.00049589,120]
[381117468,1756055442572,-480.0,0.00049589,120]
[381117469,1756055442588,-819.49,0.00049589,120]
[381117470,1756055442598,-3032.16,0.00049589,120]
[381117471,1756055442607,-480.0,0.00049589,120]
[381117472,1756055442617,-480.0,0.00049589,120]
[381117473,1756055442627,-696.12,0.00049589,120]
[381117474,1756055442636,-480.0,0.00049589,120]
[381117475,1756055442646,-480.0,0.00049589,120]
[381117476,1756055442655,-480.0,0.00049589,120]
[381117477,1756055442666,-480.0,0.00049589,120]
[381117478,1756055442676,-2168.02,0.00049589,120]
[381117479,1756055442686,-480.0,0.00049589,120]
[381117480,1756055442696,-480.0,0.00049589,120]
[381117481,1756055442706,-775.51,0.00049589,120]
[381117482,1756055442717,-3394.87,0.00049589,120]
[381117483,1756055442727,-850.25,0.00049589,120]
[381117484,1756055442737,-480.0,0.00049589,120]
[381117485,1756055442747,-480.0,0.00049589,120]
[381117486,1756055442757,-480.0,0.00049589,120]
[381117487,1756055442767,-480.0,0.00049589,120]
[381117488,1756055442778,-690.14,0.00049589,120]
[381117489,1756055442789,-480.0,0.00049589,120]
[381117490,1756055442799,-1266.09,0.00049589,120]
[381117491,1756055442808,-1153.16,0.00049589,120]
[381117492,1756055442818,-1290.45,0.00049589,120]
[381117493,1756055442828,-997.77,0.00049589,120]
[381117494,1756055442837,-480.0,0.00049589,120]
[381117495,1756055442847,-480.0,0.00049589,120]
[381117496,1756055442857,-576.51635329,0.00049589,120]
[381117497,1756055442866,-690.65,0.00049589,120]
[381117498,1756055442876,-480.0,0.00049589,120]
[381117499,1756055442885,-771.12,0.00049589,120]
[381117500,1756055442895,-480.0,0.00049589,120]
[381117501,1756055442905,-480.0,0.00049589,120]
[381117502,1756055442914,-1024.37,0.00049589,120]
[381117503,1756055442924,-480.0,0.00049589,120]
[381117504,1756055442933,-480.0,0.00049589,120]
[381117505,1756055442943,-480.0,0.00049589,120]
[381117506,1756055442953,-480.0,0.00049589,120]
[381117507,1756055442962,-480.0,0.00049589,120]
[381117508,1756055442972,-1911.5,0.00049589,120]
[381117509,1756055442985,-480.0,0.00049589,120]
[381117510,1756055442994,-745.36,0.00049589,120]
[381117511,1756055443004,-1843.25,0.00049589,120]
[381117512,1756055443013,-480.0,0.00049589,120]
[381117513,1756055443026,-5670.67,0.00049589,120]
[381117514,1756055443035,-537.12,0.00049589,120]
[381117515,1756055443045,-480.0,0.00049589,120]
[381117516,1756055443056,-480.0,0.00049589,120]
[381117517,1756055443066,-793.94,0.00049589,120]
[381117518,1756055443075,-480.0,0.00049589,120]
[381117519,1756055443085,-480.0,0.00049589,120]
[381117520,1756055443094,-1296.84,0.00049589,120]
[381117521,1756055443104,-1146.21,0.00049589,120]
[381117522,1756055443113,-1011.54,0.00049589,120]
[381117523,1756055443123,-508.95,0.00049589,120]
[381117524,1756055443132,-480.0,0.00049589,7]
[381117525,1756055443142,-480.0,0.00049589,120]
[381117526,1756055443152,-480.0,0.00049589,120]
[381117527,1756055443162,-480.0,0.00049589,120]
[381117528,1756055443172,-3301.48,0.00049589,120]
[381117529,1756055443182,-515.5311617,0.00049589,120]
[381117530,1756055443192,-2278.23,0.00049589,120]
[381117531,1756055443202,-903.27,0.00049589,120]
[381117532,1756055443212,-739.84,0.00049589,120]
[381117533,1756055443222,-480.0,0.00049589,120]
[381117534,1756055443233,-480.0,0.00049589,30]
[381117535,1756055443243,-529.95,0.00049589,120]
[381117536,1756055443253,-491.26,0.00049589,120]
[381117537,1756055443263,-3194.73,0.00049589,120]
[381117538,1756055443272,-480.0,0.00049589,30]
[381117539,1756055443282,-151.0,0.00049589,120]
[381117540,1756055443291,-151.0,0.00049589,120]
[381117541,1756055443301,-151.0,0.00049589,120]
[381117542,1756055443311,-151.0,0.00049589,120]
[381117543,1756055443321,-480.0,0.00049589,120]
[381117544,1756055443331,-151.0,0.00049589,120]
[381117545,1756055443342,-151.0,0.00049589,120]
[381117546,1756055443351,-151.0,0.00049589,120]
[381117547,1756055443361,-151.0,0.00049589,120]
[381117548,1756055443371,-1589.05,0.00049589,120]
[381117549,1756055443381,-1842.16,0.00049589,120]
[381117550,1756055443391,-480.0,0.00049589,120]
[381117551,1756055443401,-480.0,0.00049589,120]
[381117552,1756055443412,-480.0,0.00049589,120]
[381117553,1756055443422,-493.38,0.00049589,120]
[381117554,1756055443431,-1583.47,0.00049589,120]
[381117555,1756055443442,-4061.82,0.00049589,120]
[381117557,1756055443451,-1394.93,0.00049589,120]
[381117560,1756055443461,-480.0,0.00049589,120]
[381117562,1756055443471,-1131.41,0.00049589,120]
[381117564,1756055443480,-1693.2,0.00049589,120]
[381117566,1756055443490,-480.0,0.00049589,120]
[381117568,1756055443501,-480.0,0.00049589,120]
[381117570,1756055443512,-480.0,0.00049589,120]
[381117572,1756055443522,-480.0,0.00049589,120]
[381117574,1756055443531,-204.91207204,0.00049589,120]
[381117576,1756055443541,-480.0,0.00049589,120]
[381117578,1756055443550,-480.0,0.00049589,120]
[381117580,1756055443565,-480.0,0.00049589,120]
[381117582,1756055443575,-480.0,0.00049589,120]
[381117584,1756055443585,-151.0,0.00049589,120]
[381117586,1756055443594,-151.0,0.00049589,120]
[381117588,1756055443604,-480.0,0.00049589,120]
[381117590,1756055443614,-480.0,0.00049589,120]
[381117592,1756055443623,-151.0,0.00049589,120]
[381117594,1756055443634,-247.075935,0.00049589,120]
[381117596,1756055443643,-811.93,0.00049589,120]
[381117598,1756055443653,-480.0,0.00049589,120]
[381117600,1756055443663,-2468.89,0.00049589,120]
[381117602,1756055443673,-1024.08,0.00049589,120]
[381117604,1756055443683,-480.0,0.00049589,120]
[381117606,1756055443693,-480.0,0.00049589,120]
[381117608,1756055443702,-480.0,0.00049589,120]
[381117611,1756055443712,-480.0,0.00049589,120]
[381117613,1756055443722,-480.0,0.00049589,120]
[381117615,1756055443731,-480.0,0.00049589,120]
[381117617,1756055443741,-7656.79,0.00049589,3]
[381117636,1756055443912,-5215.85,0.00049589,120]
[381117638,1756055443923,-480.0,0.00049589,120]
[381117640,1756055443932,-2138.96,0.00049589,120]
[381117642,1756055443942,-2664.31,0.00049589,120]
[381117644,1756055443952,-537.38,0.00049589,120]
[381117646,1756055443961,-480.0,0.00049589,120]
[381117648,1756055443971,-2664.31,0.00049589,120]
[381117650,1756055443985,-488.48,0.00049589,120]
[381117652,1756055443994,-2664.31,0.00049589,120]
[381117654,1756055444003,-2664.31,0.00049589,120]
[381117656,1756055444012,-2664.31,0.00049589,120]
[381117658,1756055444023,-1000.0,0.00049589,120]
[381117660,1756055444032,-2664.31,0.00049589,120]
[381117662,1756055444041,-2664.31,0.00049589,120]
[381117664,1756055444051,-2664.31,0.00049589,120]
[381117666,1756055444060,-480.0,0.00049589,120]
[381117668,1756055444070,-480.0,0.00049589,120]
[381117670,1756055444079,-480.0,0.00049589,120]
[381117672,1756055444088,-2664.31,0.00049589,120]
[381117674,1756055444097,-2664.31,0.00049589,120]
[381117676,1756055444107,-480.0,0.00049589,120]
[381117678,1756055444117,-2664.31,0.00049589,120]
[381117680,1756055444126,-2664.31,0.00049589,120]
[381117682,1756055444135,-2664.31,0.00049589,120]
[381117684,1756055444146,-2664.31,0.00049589,120]
[381117686,1756055444155,-2664.31,0.00049589,120]
[381117688,1756055444165,-2664.31,0.00049589,120]
[381117689,1756055444174,-480.0,0.00049589,120]
[381117691,1756055444183,-759.96,0.00049589,120]
[381117693,1756055444192,-2664.31,0.00049589,120]
[381117695,1756055444202,-2664.31,0.00049589,120]
[381117697,1756055444211,-2664.31,0.00049589,120]
[381117699,1756055444220,-2664.31,0.00049589,120]
[381117701,1756055444231,-2664.31,0.00049589,120]
[381117703,1756055444240,-2664.31,0.00049589,120]
[381117705,1756055444250,-2664.31,0.00049589,120]
[381117707,1756055444259,-480.0,0.00049589,120]
[381117709,1756055444268,-671.03,0.00049589,120]
[381117711,1756055444277,-2664.36736073,0.00049589,120]
[381117713,1756055444287,-480.0,0.00049589,120]
[381117715,1756055444297,-1356.34,0.00049589,120]
[381117717,1756055444307,-9117.03,0.00049589,120]
[381117719,1756055444316,-480.0,0.00049589,120]
[381117722,1756055444327,-1041.61,0.00049589,120]
[381117724,1756055444336,-559.16,0.00049589,120]
[381117726,1756055444345,-1266.87,0.00049589,120]
[381117728,1756055444354,-480.0,0.00049589,120]
[381117729,1756055444363,-151.0,0.00049589,120]
[381117732,1756055444372,-480.0,0.00049589,120]
[381117734,1756055444381,-151.0,0.00049589,120]
[381117736,1756055444391,-1384.18,0.00049589,120]
[381117738,1756055444400,-480.0,0.00049589,120]
[381117739,1756055444410,-480.0,0.00049589,120]
[381117742,1756055444421,-1175.78,0.00049589,120]
[381117743,1756055444430,-480.0,0.00049589,120]
[381117745,1756055444439,-953.84,0.00049589,120]
[381117748,1756055444449,-4820.76,0.00049589,120]
[381117750,1756055444462,-151.136049,0.00049589,120]
[381117752,1756055444471,-151.136049,0.00049589,120]
[381117754,1756055444480,-480.0,0.00049589,120]
[381117756,1756055444488,-151.136049,0.00049589,120]
[381117758,1756055444497,-151.136049,0.00049589,120]
[381117760,1756055444506,-1640.25,0.00049589,120]
[381117762,1756055444515,-151.136049,0.00049589,120]
[381117764,1756055444523,-151.136049,0.00049589,120]
[381117765,1756055444532,-480.0,0.00049589,120]
[381117767,1756055444541,-151.136049,0.00049589,120]
[381117769,1756055444551,-151.136053,0.00049589,120]
[381117771,1756055444559,-4366.09,0.00049589,120]
[381117773,1756055444568,-480.0,0.00049589,120]
[381117775,1756055444577,-927.7,0.00049589,120]
[381117777,1756055444586,-480.0,0.00049589,120]
[381117779,1756055444595,-480.0,0.00049589,120]
[381117781,1756055444604,-1049.55,0.00049589,120]
[381117783,1756055444613,-462.20848139,0.00049589,120]
[381117785,1756055444622,-10877.38,0.00049589,120]
[381117788,1756055444633,-574.28,0.00049589,120]
[381117789,1756055444642,-3921.83,0.00049589,120]
[381117791,1756055444651,-693.14,0.00049589,120]
[381117793,1756055444660,-1314.05,0.00049589,120]
[381117795,1756055444669,-480.0,0.00049589,120]
[381117797,1756055444678,-480.0,0.00049589,120]
[381117799,1756055444687,-814.69,0.00049589,120]
[381117801,1756055444697,-9711.66,0.00049589,120]
[381117803,1756055444705,-398.68645351,0.00049589,120]
[381117805,1756055444714,-813.66,0.00049589,120]
[381117807,1756055444723,-480.0,0.00049589,120]
[381117809,1756055444732,-1467.03,0.00049589,120]
[381117811,1756055444742,-480.0,0.00049589,120]
[381117813,1756055444751,-480.0,0.00049589,120]
[381117815,1756055444760,-480.0,0.00049589,120]
[381117817,1756055444769,-574.79,0.00049589,120]
[381117819,1756055444778,-480.0,0.00049589,120]
[381117821,1756055444787,-480.0,0.00049589,120]
[381117823,1756055444796,-441.63348136,0.00049589,120]
[381117825,1756055444806,-739.13,0.00049589,120]
[381117827,1756055444815,-480.0,0.00049589,120]
[381117829,1756055444824,-480.0,0.00049589,120]
[381117831,1756055444833,-480.0,0.00049589,120]
[381117833,1756055444842,-480.0,0.00049589,120]
[381117835,1756055444851,-480.0,0.00049589,120]
[381117837,1756055444860,-963.68,0.00049589,120]
[381117839,1756055444869,-480.0,0.00049589,120]
[381117841,1756055444879,-480.0,0.00049589,120]
[381117843,1756055444888,-480.0,0.00049589,120]
[381117845,1756055444898,-665.35,0.00049589,120]
[381117847,1756055444907,-480.0,0.00049589,120]
[381117849,1756055444916,-480.0,0.00049589,120]
[381117851,1756055444925,-480.0,0.00049589,120]
[381117853,1756055444934,-480.0,0.00049589,120]
[381117855,1756055444942,-480.0,0.00049589,120]
[381117856,1756055444951,-491.81,0.00049589,120]
[381117858,1756055444960,-1968.04,0.00049589,120]
[381117860,1756055444970,-260.649829,0.00049589,120]
[381117862,1756055444986,-260.649829,0.00049589,120]
[381117864,1756055444995,-487.74,0.00049589,120]
[381117866,1756055445006,-260.649829,0.00049589,120]
[381117868,1756055445017,-937.02,0.00049589,120]
[381117870,1756055445028,-480.0,0.00049589,30]
[381117872,1756055445038,-1614.12,0.00049589,120]
[381117874,1756055445048,-260.649829,0.00049589,120]
[381117876,1756055445061,-596.24,0.00049589,120]
[381117878,1756055445071,-1392.01,0.00049589,120]
[381117880,1756055445080,-260.649829,0.00049589,120]
[381117882,1756055445089,-260.649829,0.00049589,120]
[381117884,1756055445098,-1661.12,0.00049589,120]
[381117886,1756055445107,-990.78,0.00049589,120]
[381117888,1756055445117,-480.0,0.00049589,90]
[381117890,1756055445126,-1923.74,0.00049589,120]
[381117892,1756055445136,-260.649829,0.00049589,120]
[381117894,1756055445146,-260.649827,0.00049589,120]
[381117896,1756055445156,-151.0,0.00049589,120]
[381117898,1756055445165,-241.227326,0.00049589,120]
[381117900,1756055445174,-480.0,0.00049589,120]
[381117902,1756055445183,-151.0,0.00049589,120]
[381117904,1756055445193,-151.0,0.00049589,120]
[381117906,1756055445202,-480.0,0.00049589,120]
[381117908,1756055445211,-480.0,0.00049589,120]
[381117910,1756055445221,-728.28,0.00049589,120]
[381117912,1756055445231,-829.08,0.00049589,120]
[381117914,1756055445240,-480.0,0.00049589,120]
[381117916,1756055445250,-480.51629269,0.00049589,120]
[381117918,1756055445259,-480.0,0.00049589,120]
[381117921,1756055445268,-31593.11,0.00049589,120]
[381117923,1756055445278,-190.310168,0.00049589,120]
[381117925,1756055445287,-190.310168,0.00049589,120]
[381117927,1756055445296,-480.0,0.00049589,120]
[381117929,1756055445305,-18383.01,0.00049589,120]
[381117931,1756055445315,-190.310168,0.00049589,120]
[381117933,1756055445325,-515.0,0.00049589,120]
[381117935,1756055445334,-190.310168,0.00049589,120]
[381117937,1756055445344,-190.310168,0.00049589,120]
[381117939,1756055445353,-480.0,0.00049589,120]
[381117941,1756055445362,-190.310168,0.00049589,120]
[381117943,1756055445371,-1326.21,0.00049589,120]
[381117944,1756055445381,-1326.21,0.00049589,120]
[381117946,1756055445390,-1326.21,0.00049589,120]
[381117948,1756055445399,-1326.21,0.00049589,120]
[381117950,1756055445408,-190.310168,0.00049589,120]
[381117952,1756055445418,-1326.21,0.00049589,120]
[381117954,1756055445428,-190.310176,0.00049589,120]
[381117956,1756055445438,-1326.21,0.00049589,120]
[381117958,1756055445447,-480.0,0.00049589,120]
[381117960,1756055445467,-1326.21,0.00049589,120]
[381117962,1756055445477,-1326.21,0.00049589,120]
[381117964,1756055445486,-1326.21,0.00049589,120]
[381117966,1756055445496,-1326.21,0.00049589,120]
[381117968,1756055445506,-1265.77,0.00049589,120]
[381117970,1756055445516,-1326.21,0.00049589,120]
[381117972,1756055445525,-480.0,0.00049589,120]
[381117974,1756055445535,-1326.21,0.00049589,120]
[381117976,1756055445545,-1326.21,0.00049589,120]
[381117978,1756055445554,-3415.67,0.00049589,120]
[381117980,1756055445563,-1326.21,0.00049589,120]
[381117982,1756055445572,-1514.7,0.00049589,120]
[381117984,1756055445582,-1326.21,0.00049589,120]
[381117986,1756055445591,-1326.21,0.00049589,120]
[381117988,1756055445601,-619.03166409,0.00049589,120]
[381117990,1756055445612,-1326.21,0.00049589,120]
[381117992,1756055445622,-1326.21,0.00049589,120]
[381117994,1756055445631,-1326.21,0.00049589,120]
[381117996,1756055445640,-1326.21,0.00049589,120]
[381117998,1756055445649,-1326.21,0.00049589,120]
[381118000,1756055445658,-480.0,0.00049589,120]
[381118002,1756055445668,-151.0,0.00049589,120]
[381118004,1756055445677,-1326.21,0.00049589,120]
[381118006,1756055445687,-619.30324031,0.00049589,120]
[381118008,1756055445697,-151.0,0.00049589,120]
[381118010,1756055445706,-480.0,0.00049589,120]
[381118012,1756055445715,-1326.21,0.00049589,120]
[381118013,1756055445724,-1326.2999621,0.00049589,120]
[381118015,1756055445733,-480.0,0.00049589,120]
[381118017,1756055445743,-570.0,0.00049589,120]
[381118019,1756055445752,-151.0,0.00049589,120]
[381118021,1756055445762,-151.0,0.00049589,120]
[381118023,1756055445771,-2162.26,0.00049589,120]
[381118025,1756055445781,-480.0,0.00049589,120]
[381118027,1756055445790,-607.75,0.00049589,120]
[381118028,1756055445799,-1526.46,0.00049589,120]
[381118030,1756055445810,-480.0,0.00049589,120]
[381118032,1756055445819,-480.0,0.00049589,120]
[381118034,1756055445828,-480.0,0.00049589,120]
[381118036,1756055445837,-3346.86,0.00049589,120]
[381118038,1756055445847,-1009.26,0.00049589,120]
[381118040,1756055445856,-2069.22,0.00049589,120]
[381118042,1756055445865,-480.0,0.00049589,120]
[381118044,1756055445875,-1539.71,0.00049589,120]
[381118045,1756055445884,-815.12,0.00049589,120]
[381118047,1756055445893,-480.0,0.00049589,120]
[381118049,1756055445902,-480.0,0.00049589,120]
[381118051,1756055445912,-1473.28,0.00049589,120]
[381118053,1756055445923,-10164.75,0.00049589,120]
[381118055,1756055445931,-480.0,0.00049589,120]
[381118057,1756055445941,-480.0,0.00049589,120]
[381118059,1756055445950,-480.0,0.00049589,120]
[381118061,1756055445959,-484.05,0.00049589,120]
[381118063,1756055445968,-480.0,0.00049589,120]
[381118065,1756055445982,-4042.25,0.00049589,120]
[381118066,1756055445991,-480.0,0.00049589,120]
[381118068,1756055446000,-948.53,0.00049589,120]
[381118070,1756055446009,-151.0,0.00049589,120]
[381118072,1756055446019,-151.0,0.00049589,120]
[381118074,1756055446029,-1096.68,0.00049589,120]
[381118076,1756055446038,-839.42,0.00049589,120]
[381118078,1756055446048,-480.0,0.00049589,120]
[381118080,1756055446057,-1096.68,0.00049589,120]
[381118082,1756055446067,-1096.68,0.00049589,120]
[381118083,1756055446076,-255.809753,0.00049589,120]
[381118085,1756055446085,-1096.68,0.00049589,120]
[381118087,1756055446094,-255.809753,0.00049589,120]
[381118089,1756055446104,-1096.68,0.00049589,120]
[381118091,1756055446115,-1905.94,0.00049589,120]
[381118093,1756055446124,-151.0,0.00049589,120]
[381118095,1756055446133,-1096.68,0.00049589,120]
[381118097,1756055446144,-1096.68,0.00049589,120]
[381118099,1756055446154,-151.0,0.00049589,120]
[381118100,1756055446164,-1096.68,0.00049589,120]
[381118102,1756055446173,-1096.68,0.00049589,120]
[381118104,1756055446182,-255.809753,0.00049589,120]
[381118106,1756055446192,-1096.68,0.00049589,120]
[381118108,1756055446201,-480.0,0.00049589,120]
[381118110,1756055446211,-1096.68,0.00049589,120]
[381118113,1756055446220,-255.809753,0.00049589,120]
[381118116,1756055446228,-1096.68,0.00049589,120]
[381118119,1756055446237,-658.3,0.00049589,120]
[381118121,1756055446247,-1096.68,0.00049589,120]
[381118124,1756055446256,-1096.68,0.00049589,120]
[381118127,1756055446265,-1096.68,0.00049589,120]
[381118129,1756055446275,-255.809753,0.00049589,120]
[381118131,1756055446284,-1096.68,0.00049589,120]
[381118133,1756055446293,-1096.68,0.00049589,120]
[381118135,1756055446303,-255.809753,0.00049589,120]
[381118137,1756055446313,-1096.68,0.00049589,120]
[381118139,1756055446322,-1096.68,0.00049589,120]
[381118141,1756055446332,-1096.68,0.00049589,120]
[381118143,1756055446341,-1096.68,0.00049589,120]
[381118145,1756055446350,-480.0,0.00049589,120]
[381118147,1756055446359,-1096.68,0.00049589,120]
[381118149,1756055446369,-255.809753,0.00049589,120]
[381118150,1756055446378,-1096.68,0.00049589,120]
[381118152,1756055446388,-255.809759,0.00049589,120]
[381118154,1756055446397,-1096.76520778,0.00049589,120]
[381118156,1756055446407,-1296.93,0.00049589,120]
[381118158,1756055446416,-5679.91,0.00049589,120]
[381118160,1756055446425,-480.0,0.00049589,120]
[381118162,1756055446434,-847.85,0.00049589,120]
[381118164,1756055446443,-803.03,0.00049589,120]
[381118166,1756055446454,-826.09,0.00049589,120]
[381118168,1756055446463,-480.0,0.00049589,120]
[381118170,1756055446473,-3511.95,0.00049589,120]
[381118172,1756055446482,-480.0,0.00049589,120]
[381118173,1756055446491,-600.504233,0.00049589,30]
[381118175,1756055446500,-747.88,0.00049589,120]
[381118177,1756055446509,-480.0,0.00049589,120]
[381118179,1756055446518,-1903.35,0.00049589,120]
[381118181,1756055446529,-600.504233,0.00049589,30]
[381118183,1756055446538,-600.504233,0.00049589,30]
[381118185,1756055446548,-600.504233,0.00049589,30]
[381118187,1756055446557,-600.504233,0.00049589,30]
[381118189,1756055446566,-600.504233,0.00049589,30]
[381118191,1756055446578,-1846.81,0.00049589,120]
[381118193,1756055446589,-151.0,0.00049589,120]
[381118195,1756055446598,-151.0,0.00049589,120]
[381118197,1756055446607,-1131.94,0.00049589,120]
[381118199,1756055446616,-600.504233,0.00049589,30]
[381118201,1756055446625,-600.50422904,0.00049589,30]
[381118203,1756055446635,-4507.95,0.00049589,120]
[381118205,1756055446644,-480.0,0.00049589,120]
[381118206,1756055446654,-480.0,0.00049589,120]
[381118208,1756055446663,-480.0,0.00049589,120]
[381118210,1756055446673,-557.69,0.00049589,120]
[381118212,1756055446683,-1188.67,0.00049589,120]
[381118214,1756055446693,-480.0,0.00049589,120]
[381118216,1756055446702,-1105.71,0.00049589,120]
[381118218,1756055446711,-995.5,0.00049589,120]
[381118220,1756055446721,-609.72011676,0.00049589,120]
[381118222,1756055446730,-1386.24,0.00049589,120]
[381118224,1756055446739,-33167.14,0.00049589,120]
[381118226,1756055446748,-947.44,0.00049589,120]
[381118228,1756055446757,-151.0,0.00049589,120]
[381118230,1756055446766,-151.0,0.00049589,120]
[381118231,1756055446775,-163.0846327,0.00049589,120]
[381118232,1756055446784,-1514.41,0.00049589,120]
[381118233,1756055446794,-151.0,0.00049589,120]
[381118234,1756055446803,-480.0,0.00049589,120]
[381118235,1756055446813,-151.0,0.00049589,120]
[381118236,1756055446823,-480.0,0.00049589,120]
[381118237,1756055446832,-1088.55,0.00049589,120]
[381118238,1756055446841,-9317.4,0.00049589,120]
[381118239,1756055446850,-1804.08,0.00049589,120]
[381118240,1756055446859,-1174.84,0.00049589,120]
[381118241,1756055446869,-611.86,0.00049589,120]
[381118242,1756055446878,-1688.2,0.00049589,30]
[381118243,1756055446887,-480.0,0.00049589,120]
[381118244,1756055446898,-480.0,0.00049589,120]
[381118245,1756055446906,-151.0,0.00049589,120]
[381118246,1756055446915,-480.0,0.00049589,120]
[381118247,1756055446924,-151.0,0.00049589,120]
[381118248,1756055446933,-1247.05,0.00049589,120]
[381118249,1756055446942,-1057.43,0.00049589,120]
[381118250,1756055446950,-2110.7,0.00049589,120]
[381118251,1756055446959,-480.0,0.00049589,120]
[381118252,1756055446968,-2881.0,0.00049589,120]
[381118253,1756055446982,-2047.95,0.00049589,120]
[381118254,1756055446991,-480.0,0.00049589,120]
[381118255,1756055447000,-1786.96,0.00049589,120]
[381118256,1756055447009,-151.0,0.00049589,120]
[381118257,1756055447019,-3588.51,0.00049589,120]
[381118258,1756055447029,-1000.0,0.00049589,120]
[381118259,1756055447038,-480.0,0.00049589,120]
[381118260,1756055447050,-1747.03,0.00049589,120]
[381118261,1756055447059,-1306.49,0.00049589,120]
[381118262,1756055447068,-480.0,0.00049589,120]
[381118263,1756055447078,-1500.0,0.00049589,28]
[381118264,1756055447087,-1500.0,0.00049589,28]
[381118265,1756055447096,-151.0,0.00049589,120]
[381118266,1756055447106,-1500.0,0.00049589,28]
[381118267,1756055447276,-1500.0,0.00049589,28]
[381118268,1756055447286,-222.813916,0.00049589,120]